fUSD/lending_fUSD_20251012
["ID","MTS","AMOUNT","RATE_DAILY","PERIOD"]
[391000700,1760280634894,-625.3367158,0.00014787,2]
[391000701,1760280634999,-625.3367158,0.00014787,2]
[391000702,1760280635010,-625.3367158,0.00014787,2]
[391000703,1760280635019,-625.3367158,0.00014787,2]
[391000704,1760280635029,-625.3367158,0.00014787,2]
[391000705,1760280635039,-625.3367158,0.00014787,2]
[391000706,1760280635048,-625.3367158,0.00014787,2]
[391000707,1760280635057,-625.3367158,0.00014787,2]
[391000708,1760280635067,-625.3367158,0.00014787,2]
[391000709,1760280635077,-625.3367158,0.00014787,2]
[391000710,1760280635086,-625.3367158,0.00014787,2]
[391000711,1760280635096,-625.3367158,0.00014787,2]
[391000712,1760280635106,-625.3367158,0.00014787,2]
[391000713,1760280635115,-625.3367158,0.00014787,2]
[391000714,1760280635125,-625.3367158,0.00014787,2]
[391000715,1760280635134,-625.3367158,0.00014787,2]
[391000716,1760280635143,-625.3367158,0.00014787,2]
[391000717,1760280635153,-625.3367158,0.00014787,2]
[391000718,1760280635163,-625.3367158,0.00014787,2]
[391000719,1760280635172,-625.3367158,0.00014787,2]
[391000720,1760280635182,-625.3367158,0.00014787,2]
[391000721,1760280635197,-625.3367158,0.00014787,2]
[391000722,1760280635207,-625.3367158,0.00014787,2]
[391000723,1760280635217,-625.3367158,0.00014787,2]
[391000724,1760280635227,-625.3367158,0.00014787,2]
[391000725,1760280635239,-625.3367158,0.00014787,2]
[391000726,1760280635248,-625.3367158,0.00014787,2]
[391000727,1760280635258,-625.3367158,0.00014787,2]
[391000728,1760280635267,-625.3367158,0.00014787,2]
[391000729,1760280635277,-625.3367158,0.00014787,2]
[391000730,1760280635286,-625.3367158,0.00014787,2]
[391000731,1760280635297,-625.3367158,0.00014787,2]
[391000732,1760280635307,-625.3367158,0.00014787,2]
[391000733,1760280635316,-625.3367158,0.00014787,2]
[391000734,1760280635326,-625.3367158,0.00014787,2]
[391000735,1760280635336,-625.3367158,0.00014787,2]
[391000736,1760280635346,-620.52643336,0.00014787,2]
[391000737,1760280635356,-620.52643336,0.00014787,2]
[391000738,1760280635365,-620.52643336,0.00014787,2]
[391000739,1760280635375,-620.52643336,0.00014787,2]
[391000740,1760280635384,-620.52643336,0.00014787,2]
[391000741,1760280635394,-620.52643336,0.00014787,2]
[391000742,1760280635406,-620.52643336,0.00014787,2]
[391000743,1760280635416,-620.52643336,0.00014787,2]
[391000744,1760280635426,-620.52643336,0.00014787,2]
[391000745,1760280635436,-620.52643336,0.00014787,2]
[391000746,1760280635451,-620.52643336,0.00014787,2]
[391000747,1760280635460,-620.52643336,0.00014787,2]
[391000748,1760280635470,-620.52643336,0.00014787,2]
[391000749,1760280635479,-620.52643336,0.00014787,2]
[391000750,1760280635489,-620.52643336,0.00014787,2]
[391000751,1760280635498,-620.52643336,0.00014787,2]
[391000752,1760280635507,-620.52643336,0.00014787,2]
[391000753,1760280635516,-620.52643336,0.00014787,2]
[391000754,1760280635525,-620.52643336,0.00014787,2]
[391000755,1760280635535,-620.52643336,0.00014787,2]
[391000756,1760280635544,-620.52643336,0.00014787,2]
[391000757,1760280635553,-620.52643336,0.00014787,2]
[391000758,1760280635562,-620.52643336,0.00014787,2]
[391000759,1760280635571,-620.52643336,0.00014787,2]
[391000760,1760280635580,-620.52643336,0.00014787,2]
[391000761,1760280635589,-620.52643336,0.00014787,2]
[391000762,1760280635599,-98.85633221,0.00014787,2]
[391000763,1760280635611,-521.67010115,0.00014787,2]
[391000764,1760280635621,-620.52643336,0.00014787,2]
[391000765,1760280635630,-620.52643336,0.00014787,2]
[391000766,1760280635640,-620.52643336,0.00014787,2]
[391000767,1760280635649,-620.52643336,0.00014787,2]
[391000768,1760280635658,-626.2720485,0.00014787,2]
[391000769,1760280635668,-626.2720485,0.00014787,2]
[391000770,1760280635677,-258.78006841,0.00014787,2]
[391000771,1760280635708,-367.49198009,0.00014787,2]
[391000772,1760280635718,-287.70826841,0.00014787,2]
[391000773,1760280635729,-338.56378009,0.00014787,2]
[391000774,1760280635738,-604.73397036,0.00014787,2]
[391000775,1760280635909,-21.53807814,0.00014787,2]
[391000776,1760280635919,-626.2720485,0.00014787,2]
[391000777,1760280635927,-626.2720485,0.00014787,2]
[391000778,1760280635937,-626.2720485,0.00014787,2]
[391000779,1760280635949,-626.27204849,0.00014787,2]
[391000780,1760280635958,-2179.16,0.00014791,2]
[391000781,1760280635969,-150.0,0.00014791,2]
[391000782,1760280635977,-500.0,0.00014791,2]
[391000783,1760280635987,-629.0,0.00014819,2]
[391000784,1760280635996,-18055.53892272,0.0001482,2]
[391000785,1760280636005,-2848.3986,0.0001483,2]
[391000786,1760280636015,-150.0,0.00014846,2]
[391000787,1760280636024,-500.0,0.00014846,2]
[391000788,1760280636033,-192.68124734,0.00014853,2]
[391000789,1760280636042,-500.0,0.00014871,2]
[391000790,1760280636051,-500.0,0.00014871,2]
[391000791,1760280636061,-500.0,0.00014871,2]
[391000792,1760280636070,-404.22581024,0.00014871,2]
[391000793,1760280636080,-182.84743364,0.00014871,2]
[391000794,1760280636090,-175.82246754,0.00014878,2]
[391000795,1760280636101,-500.0,0.0001488,2]
[391000796,1760280636111,-1566.8643699,0.0001488,2]
[391000797,1760280636120,-5000.0,0.0001488,2]
[391000798,1760280636130,-408.0071213,0.0001488,2]
[391000799,1760280636139,-210.2981234,0.00014882,2]
[391000800,1760280636149,-1566.86436981,0.00014882,2]
[391000801,1760280636158,-1566.86436981,0.00014884,2]
[391000802,1760280636168,-210.2981234,0.00014885,2]
[391000803,1760280636178,-1566.86436981,0.00014887,2]
[391000804,1760280636187,-210.2981234,0.00014888,2]
[391000805,1760280636201,-1566.86436981,0.00014889,2]
[391000806,1760280636211,-175.82246754,0.00014889,2]
[391000807,1760280636221,-210.2981234,0.00014891,2]
[391000808,1760280636231,-1566.86436981,0.00014891,2]
[391000809,1760280636241,-500.0,0.00014893,2]
[391000810,1760280636250,-160.3408057,0.00014893,2]
[391000811,1760280636260,-500.0,0.00014893,2]
[391000812,1760280636270,-150.0,0.00014893,2]
[391000813,1760280636279,-253.31544935,0.00014893,2]
[391000814,1760280636289,-500.0,0.00014893,2]
[391000815,1760280636299,-500.0,0.00014893,2]
[391000816,1760280636309,-150.0,0.00014893,2]
[391000817,1760280636325,-500.0,0.00014893,2]
[391000818,1760280636338,-150.0,0.00014893,2]
[391000819,1760280636348,-500.0,0.00014893,2]
[391000820,1760280636357,-500.0,0.00014893,2]
[391000821,1760280636366,-1566.86436981,0.00014893,2]
[391000822,1760280636376,-210.2981234,0.00014894,2]
[391000823,1760280636385,-1566.86436981,0.00014896,2]
[391000824,1760280636396,-210.2981234,0.00014897,2]
[391000825,1760280636407,-263.05931494,0.00014898,2]
[391000826,1760280636964,-1303.80505487,0.00014898,2]
[391000827,1760280636974,-155.61055039,0.000149,2]
[391000854,1760280643454,-54.68757301,0.000149,2]
[391000855,1760280643464,-618.22975263,0.000149,2]
[391000856,1760280643495,-2381.77024737,0.000149,2]
[391000857,1760280643505,-689.59408056,0.000149,2]
[391000858,1760280643577,-877.27028925,0.000149,2]
[391000859,1760280643588,-175.82246754,0.000149,2]
[391000860,1760280643598,-256.90724321,0.000149,2]
[391000861,1760280643610,-43.09275679,0.000149,2]
[391000862,1760280643619,-192.68124734,0.000149,2]
[391000863,1760280643628,-175.68520706,0.00014901,2]
[391000864,1760280643637,-411.03586236,0.00014901,2]
[391000865,1760280643646,-629.0,0.00014908,2]
[391000866,1760280643656,-168.0,0.00014931,2]
[391000867,1760280643665,-500.0,0.00014948,2]
[391000868,1760280643675,-500.0,0.00014948,2]
[391000869,1760280643684,-251.64880541,0.00014948,2]
[391000870,1760280643693,-315.45612104,0.00014948,2]
[391000871,1760280643724,-184.54387896,0.00014948,2]
[391000872,1760280643734,-500.0,0.00014948,2]
[391000873,1760280643743,-489.93691798,0.00014948,2]
[391000874,1760280644985,-10.06308202,0.00014948,2]
[391000875,1760280644995,-500.0,0.00014948,2]
[391000876,1760280645004,-500.0,0.00014948,2]
[391000877,1760280645013,-161.04417186,0.00014952,2]
[391000878,1760280645022,-202.33849723,0.00014952,2]
[391000879,1760280645032,-500.0,0.00014952,2]
[391000880,1760280645041,-578.16882484,0.00014952,2]
[391000881,1760280645051,-48.38542405,0.00014952,2]
[391000882,1760280645162,-2350.15174675,0.00014952,2]
[391000883,1760280645321,-3232.00178291,0.00014952,2]
[391000884,1760280645332,-524.92026969,0.00014952,2]
[391000885,1760280645343,-2401.23221611,0.00014952,2]
[391001026,1760280647861,-383.89,0.00014952,2]
[391001028,1760280647872,-11170.0,0.00014952,2]
[391001048,1760280648051,-575.6954453,0.00014952,2]
[391001104,1760280651517,-129175.4404656,0.00014952,2]
[391001105,1760280651570,-3964.48314527,0.00014952,2]
[391001106,1760280651601,-1714.83834797,0.00014952,2]
[391001111,1760280711231,1716.88837296,0.00027,120]
[391001121,1760280849062,2927.040382,0.0002739,120]
[391001125,1760280909309,179.0,0.00025012,120]
[391001126,1760280910662,179.0,0.00026262,120]
[391001127,1760280917268,5146.74,0.00027397,120]
[391001134,1760281192094,5000.0,0.00027397,120]
[391001135,1760281250066,-151.0,0.000149,24]
[391001146,1760281411998,1000.0,0.00027397,120]
[391001147,1760281413664,249.0,0.00027261,120]
[391001151,1760281420718,3001.5839757,0.00027397,120]
[391001152,1760281450744,150.0,0.00013899,120]
[391001153,1760281528442,500.0,0.00027,120]
[391001154,1760281554966,321.0,0.00027397,120]
[391001254,1760281834648,-1050.255,0.00013895,2]
[391001255,1760281834660,-830.395,0.00013895,2]
[391001256,1760281834670,-169.1337952,0.00013895,2]
[391001257,1760281834680,-1000.0,0.00013895,2]
[391001258,1760281834689,-150.0,0.00013899,2]
[391001259,1760281834699,-666.0,0.00014168,3]
[391001260,1760281834709,-736.0,0.00014278,2]
[391001261,1760281834718,-736.0,0.00014319,2]
[391001262,1760281834727,-736.0,0.00014475,2]
[391001263,1760281834737,-1200.0,0.00014499,2]
[391001264,1760281834748,-3426.64785494,0.000145,2]
[391001265,1760281834758,-300.0,0.00014554,2]
[391001266,1760281834767,-736.0,0.00014555,2]
[391001267,1760281834776,-736.0,0.00014584,2]
[391001268,1760281834787,-576.0,0.00014644,2]
[391001269,1760281834796,-738.0,0.00014653,2]
[391001270,1760281834806,-576.0,0.00014684,2]
[391001271,1760281834815,-576.0,0.00014715,2]
[391001272,1760281834827,-2373.6655,0.000148,2]
[391001273,1760281834837,-267.46074303,0.00014847,2]
[391001274,1760281834847,-151.0,0.00014847,2]
[391001275,1760281834861,-2000.0,0.0001485,2]
[391001276,1760281834870,-226.03360058,0.00014853,2]
[391001277,1760281834880,-168.06440372,0.00014853,2]
[391001278,1760281834889,-167.5183728,0.00014856,2]
[391001279,1760281834899,-150.0,0.00014856,2]
[391001280,1760281834908,-5000.0,0.00014857,2]
[391001281,1760281834917,-500.0,0.00014857,2]
[391001282,1760281834928,-500.0,0.00014857,2]
[391001283,1760281834937,-500.0,0.00014857,2]
[391001284,1760281834946,-500.0,0.00014857,2]
[391001285,1760281834960,-500.0,0.00014857,2]
[391001286,1760281834973,-500.0,0.00014857,2]
[391001287,1760281834983,-500.0,0.00014857,2]
[391001288,1760281834994,-500.0,0.00014857,2]
[391001289,1760281835003,-500.0,0.00014857,2]
[391001290,1760281835013,-500.0,0.00014857,2]
[391001291,1760281835024,-500.0,0.00014857,2]
[391001292,1760281835033,-500.0,0.00014857,2]
[391001293,1760281835045,-500.0,0.00014857,2]
[391001294,1760281835055,-500.0,0.00014857,2]
[391001295,1760281835065,-500.0,0.00014857,2]
[391001296,1760281835076,-500.0,0.00014857,2]
[391001297,1760281835085,-500.0,0.00014857,2]
[391001298,1760281835094,-500.0,0.00014857,2]
[391001299,1760281835106,-500.0,0.00014857,2]
[391001300,1760281835116,-500.0,0.00014857,2]
[391001301,1760281835125,-500.0,0.00014857,2]
[391001302,1760281835134,-500.0,0.00014857,2]
[391001303,1760281835144,-500.0,0.00014857,2]
[391001304,1760281835154,-1000.0,0.00014857,2]
[391001305,1760281835163,-500.0,0.00014857,2]
[391001306,1760281835172,-1000.0,0.00014857,2]
[391001307,1760281835181,-1000.0,0.00014857,2]
[391001308,1760281835191,-1000.0,0.00014857,2]
[391001309,1760281835200,-1000.0,0.00014857,2]
[391001310,1760281835209,-1000.0,0.00014857,2]
[391001311,1760281835218,-1000.0,0.00014857,2]
[391001312,1760281835227,-1000.0,0.00014857,2]
[391001313,1760281835236,-1000.0,0.00014857,2]
[391001314,1760281835245,-1000.0,0.00014857,2]
[391001315,1760281835254,-1000.0,0.00014857,2]
[391001316,1760281835264,-1000.0,0.00014857,2]
[391001317,1760281835273,-1000.0,0.00014857,2]
[391001318,1760281835283,-1000.0,0.00014857,2]
[391001319,1760281835293,-1000.0,0.00014857,2]
[391001320,1760281835302,-1000.0,0.00014857,2]
[391001321,1760281835311,-1000.0,0.00014857,2]
[391001322,1760281835320,-1000.0,0.00014857,2]
[391001323,1760281835330,-1000.0,0.00014857,2]
[391001324,1760281835339,-488.3179096,0.00014857,2]
[391001325,1760281835350,-1000.0,0.00014857,2]
[391001326,1760281835361,-1000.0,0.00014857,2]
[391001327,1760281835369,-1000.0,0.00014857,2]
[391001328,1760281835380,-1000.0,0.00014857,2]
[391001329,1760281835389,-1000.0,0.00014857,2]
[391001330,1760281835398,-1000.0,0.00014857,2]
[391001331,1760281835408,-1000.0,0.00014857,2]
[391001332,1760281835417,-1000.0,0.00014857,2]
[391001333,1760281835427,-1000.0,0.00014857,2]
[391001334,1760281835436,-1000.0,0.00014857,2]
[391001335,1760281835445,-1000.0,0.00014857,2]
[391001336,1760281835455,-1000.0,0.00014857,2]
[391001337,1760281835465,-1000.0,0.00014857,2]
[391001338,1760281835478,-1000.0,0.00014857,2]
[391001339,1760281835491,-500.0,0.00014857,2]
[391001340,1760281835505,-1000.0,0.00014857,2]
[391001341,1760281835515,-500.0,0.00014857,2]
[391001342,1760281835524,-1000.0,0.00014857,2]
[391001343,1760281835533,-500.0,0.00014857,2]
[391001344,1760281835543,-71.69836782,0.00014857,2]
[391001345,1760281836719,-428.30163218,0.00014857,2]
[391001346,1760281836729,-1000.0,0.00014857,2]
[391001347,1760281836739,-500.0,0.00014857,2]
[391001348,1760281836753,-455.65636996,0.00014857,2]
[391001349,1760281836766,-44.34363004,0.00014857,2]
[391001350,1760281836774,-1000.0,0.00014857,2]
[391001351,1760281836785,-229.79636996,0.00014857,2]
[391001352,1760281836797,-270.20363004,0.00014857,2]
[391001353,1760281836806,-398.66459996,0.00014857,2]
[391001354,1760281836818,-101.33540004,0.00014857,2]
[391001355,1760281836830,-500.0,0.00014857,2]
[391001356,1760281836841,-186.57853456,0.00014857,2]
[391001357,1760281836854,-313.42146544,0.00014857,2]
[391001358,1760281836863,-500.0,0.00014857,2]
[391001359,1760281836873,-484.52683638,0.00014857,2]
[391001360,1760281836967,-15.47316362,0.00014857,2]
[391001361,1760281836976,-500.0,0.00014857,2]
[391001362,1760281836986,-500.0,0.00014857,2]
[391001363,1760281836996,-500.0,0.00014857,2]
[391001364,1760281837008,-199.60092511,0.00014857,2]
[391001365,1760281837020,-300.39907489,0.00014857,2]
[391001366,1760281837029,-500.0,0.00014857,2]
[391001367,1760281837039,-500.0,0.00014857,2]
[391001368,1760281837048,-500.0,0.00014857,2]
[391001369,1760281837058,-500.0,0.00014857,2]
[391001370,1760281837067,-500.0,0.00014857,2]
[391001371,1760281837076,-500.0,0.00014857,2]
[391001372,1760281837086,-500.0,0.00014857,2]
[391001373,1760281837095,-500.0,0.00014857,2]
[391001374,1760281837109,-500.0,0.00014857,2]
[391001375,1760281837118,-500.0,0.00014857,2]
[391001376,1760281837128,-500.0,0.00014857,2]
[391001377,1760281837137,-500.0,0.00014857,2]
[391001378,1760281837146,-500.0,0.00014857,2]
[391001379,1760281837155,-500.0,0.00014857,2]
[391001380,1760281837164,-500.0,0.00014857,2]
[391001381,1760281837175,-500.0,0.00014857,2]
[391001382,1760281837186,-500.0,0.00014857,2]
[391001383,1760281837195,-500.0,0.00014857,2]
[391001384,1760281837205,-500.0,0.00014857,2]
[391001385,1760281837216,-500.0,0.00014857,2]
[391001386,1760281837226,-226.03360054,0.00014858,2]
[391001387,1760281837237,-226.03360054,0.00014863,2]
[391001388,1760281837248,-226.03360054,0.00014869,2]
[391001389,1760281837258,-226.03360054,0.00014874,2]
[391001390,1760281837268,-226.03360054,0.00014879,2]
[391001391,1760281837277,-500.0,0.0001488,2]
[391001392,1760281837288,-517.98476408,0.0001488,2]
[391001393,1760281837297,-209.10831273,0.0001488,2]
[391001394,1760281837307,-395.22544414,0.0001488,2]
[391001395,1760281837316,-226.03360054,0.00014884,2]
[391001396,1760281837325,-226.03360054,0.0001489,2]
[391001397,1760281837335,-226.03360054,0.00014895,2]
[391001398,1760281837344,-1624.87022338,0.00014895,2]
[391001399,1760281837357,-2000.0,0.000149,2]
[391001400,1760281837366,-1315.03444908,0.000149,2]
[391001401,1760281837378,-309.8357743,0.000149,2]
[391001402,1760281837387,-1500.000001,0.000149,2]
[391001403,1760281837396,-1042.13,0.000149,2]
[391001404,1760281837406,-226.03360054,0.000149,2]
[391001405,1760281837415,-167.51837279,0.000149,2]
[391001406,1760281837425,-6510.01303031,0.0001492,2]
[391001407,1760281837435,-6510.01303031,0.00014937,2]
[391001408,1760281837444,-171.85,0.00014943,2]
[391001409,1760281837453,-171.85,0.00014943,2]
[391001410,1760281837462,-171.85,0.00014943,2]
[391001411,1760281837471,-171.85,0.00014943,2]
[391001412,1760281837480,-1723.0,0.00014943,2]
[391001413,1760281837490,-171.85,0.00014946,2]
[391001414,1760281837499,-357.0,0.00014947,2]
[391001415,1760281837509,-1550.27841744,0.00014948,2]
[391001416,1760281837521,-1274.71645916,0.00014948,2]
[391001417,1760281837530,-10779.07790818,0.00014948,2]
[391001418,1760281837565,-2412.24959229,0.00014948,2]
[391001419,1760281837578,-24687.84640773,0.00014948,2]
[391001420,1760281837588,-7955.428507,0.00014948,2]
[391001421,1760281837598,-1000.0,0.00014951,2]
[391001422,1760281837610,-500.0,0.00014952,2]
[391001423,1760281837619,-247.45017196,0.00014952,2]
[391001424,1760281837628,-150.0,0.00014952,2]
[391001425,1760281837637,-500.0,0.00014952,2]
[391001426,1760281837647,-3485.3494193,0.00014953,2]
[391001427,1760281837656,-520.556316,0.00014953,2]
[391001428,1760281837667,-151.0,0.00014953,2]
[391001429,1760281837676,-151.0,0.00014953,2]
[391001430,1760281837686,-151.0,0.00014953,2]
[391001431,1760281837695,-151.0,0.00014953,2]
[391001432,1760281837704,-151.0,0.00014953,2]
[391001433,1760281837714,-151.0,0.00014953,2]
[391001434,1760281837724,-151.0,0.00014953,2]
[391001435,1760281837733,-151.0,0.00014953,2]
[391001436,1760281837743,-151.0,0.00014953,2]
[391001437,1760281837757,-151.0,0.00014953,2]
[391001438,1760281837768,-151.0,0.00014953,2]
[391001439,1760281837778,-151.0,0.00014953,2]
[391001440,1760281837789,-151.0,0.00014953,2]
[391001441,1760281837799,-151.0,0.00014953,2]
[391001442,1760281837809,-174.811338,0.00014953,2]
[391001443,1760281837819,-174.811338,0.00014953,2]
[391001444,1760281837830,-174.811338,0.00014953,2]
[391001445,1760281837839,-174.811338,0.00014953,2]
[391001446,1760281837849,-174.811338,0.00014953,2]
[391001447,1760281837858,-174.811338,0.00014953,2]
[391001448,1760281837867,-174.811338,0.00014953,2]
[391001449,1760281837876,-174.811338,0.00014953,2]
[391001450,1760281837886,-151.0,0.00014956,2]
[391001451,1760281837895,-151.0,0.00014956,2]
[391001452,1760281837905,-151.0,0.00014956,2]
[391001453,1760281837914,-151.0,0.00014956,2]
[391001454,1760281837925,-227.671865,0.00014956,2]
[391001455,1760281837935,-227.671865,0.00014956,2]
[391001456,1760281837945,-227.671865,0.00014956,2]
[391001457,1760281837955,-227.671865,0.00014956,2]
[391001458,1760281837964,-227.671865,0.00014956,2]
[391001459,1760281837974,-227.671865,0.00014956,2]
[391001460,1760281837983,-227.671865,0.00014956,2]
[391001461,1760281837993,-227.671865,0.00014956,2]
[391001462,1760281838002,-1475.172036,0.00014956,2]
[391001463,1760281838012,-1475.172036,0.00014956,2]
[391001464,1760281838021,-1475.172036,0.00014956,2]
[391001465,1760281838031,-1475.172036,0.00014956,2]
[391001466,1760281838040,-151.0,0.00014956,2]
[391001467,1760281838049,-151.0,0.00014956,2]
[391001468,1760281838059,-151.0,0.00014956,2]
[391001469,1760281838068,-1475.172036,0.00014956,2]
[391001470,1760281838077,-1475.172036,0.00014956,2]
[391001471,1760281838087,-1475.172036,0.00014956,2]
[391001472,1760281838097,-1475.172036,0.00014956,2]
[391001473,1760281838109,-151.0,0.00014956,2]
[391001474,1760281838118,-163.415885,0.00014956,2]
[391001475,1760281838127,-160.378321,0.00014956,2]
[391001477,1760281838137,-151.0,0.00014956,2]
[391001478,1760281838146,-151.0,0.00014956,2]
[391001479,1760281838156,-156.626726,0.00014956,2]
[391001480,1760281838165,-151.0,0.00014957,2]
[391001481,1760281838175,-151.555807,0.00014957,2]
[391001482,1760281838184,-151.0,0.00014957,2]
[391001483,1760281838193,-152.422771,0.00014957,2]
[391001484,1760281838203,-151.0,0.00014957,2]
[391001485,1760281838213,-151.0,0.00014957,2]
[391001486,1760281838222,-173.053,0.00014957,2]
[391001487,1760281838231,-2229.96,0.00014957,2]
[391001488,1760281838241,-152.717876,0.00014958,2]
[391001489,1760281838250,-151.0,0.00014958,2]
[391001490,1760281838259,-151.0,0.00014958,2]
[391001491,1760281838268,-151.0,0.00014958,2]
[391001492,1760281838277,-151.0,0.00014958,2]
[391001493,1760281838287,-236.854079,0.00014958,2]
[391001494,1760281838298,-151.0,0.00014958,2]
[391001495,1760281838307,-151.0,0.00014958,2]
[391001496,1760281838316,-151.0,0.00014958,2]
[391001497,1760281838326,-151.0,0.00014958,2]
[391001498,1760281838335,-151.0,0.00014958,2]
[391001499,1760281838345,-157.687543,0.00014958,2]
[391001500,1760281838355,-151.0,0.00014958,2]
[391001501,1760281838364,-151.0,0.00014958,2]
[391001502,1760281838374,-151.0,0.00014958,2]
[391001503,1760281838383,-151.0,0.00014958,2]
[391001504,1760281838393,-151.0,0.00014958,2]
[391001505,1760281838402,-151.0,0.00014958,2]
[391001506,1760281838411,-151.0,0.00014958,2]
[391001507,1760281838420,-151.0,0.00014958,2]
[391001508,1760281838429,-151.0,0.00014958,2]
[391001509,1760281838439,-151.0,0.00014958,2]
[391001510,1760281838449,-151.0,0.00014958,2]
[391001511,1760281838458,-151.0,0.00014958,2]
[391001512,1760281838468,-250.465726,0.00014958,2]
[391001513,1760281838478,-151.0,0.00014958,2]
[391001514,1760281838487,-151.0,0.00014958,2]
[391001515,1760281838497,-151.0,0.00014958,2]
[391001516,1760281838506,-151.0,0.00014958,2]
[391001517,1760281838515,-573.930372,0.00014958,2]
[391001518,1760281838525,-573.930372,0.00014958,2]
[391001519,1760281838535,-922.875443,0.00014958,2]
[391001520,1760281838547,-573.930372,0.00014958,2]
[391001521,1760281838556,-151.0,0.00014958,2]
[391001522,1760281838566,-922.875443,0.00014958,2]
[391001523,1760281838575,-573.930372,0.00014958,2]
[391001524,1760281838585,-922.875443,0.00014958,2]
[391001525,1760281838594,-151.0,0.00014958,2]
[391001526,1760281838605,-922.875443,0.00014958,2]
[391001527,1760281838615,-151.0,0.00014958,2]
[391001529,1760281838623,-151.0,0.00014958,2]
[391001531,1760281838634,-205.54258,0.00014958,2]
[391001533,1760281838643,-151.0,0.00014965,2]
[391001535,1760281838653,-150.0,0.00014967,2]
[391001537,1760281838663,-500.0,0.00014967,2]
[391001538,1760281838672,-150.0,0.00014967,2]
[391001540,1760281838681,-500.0,0.00014967,2]
[391001542,1760281838691,-242.45575434,0.00014967,2]
[391001544,1760281838700,-150.0,0.00014968,2]
[391001546,1760281838711,-150.0,0.00014968,2]
[391001549,1760281838720,-152.0,0.00014968,2]
[391001551,1760281838729,-2065.444,0.00014968,2]
[391001553,1760281838739,-1266.0,0.00014968,2]
[391001555,1760281838751,-1309.0,0.00014968,2]
[391001556,1760281838760,-561.32393707,0.00014968,2]
[391001561,1760281838798,-8.67106293,0.00014968,2]
[391001563,1760281838807,-558.32399689,0.00014968,2]
[391001566,1760281838819,-45.67600311,0.00014968,2]
[391001567,1760281838830,-588.86854251,0.00014968,2]
[391001570,1760281838841,-227.13145749,0.00014968,2]
[391001572,1760281838851,-852.0,0.00014968,2]
[391001574,1760281838860,-785.69586761,0.00014968,2]
[391001576,1760281838876,-251.6559542,0.00014968,2]
[391001578,1760281838887,-1171.87051943,0.00014968,2]
[391001581,1760281838898,-1911.77765876,0.00014968,2]
[391001583,1760281838907,-361.95845677,0.00014968,2]
[391001675,1760281843240,-1135.3,0.00014952,2]
[391001676,1760281843251,-293.04,0.00014952,2]
[391001677,1760281843358,-737.19678599,0.00014952,2]
[391001678,1760281843430,-1675.22578312,0.00014952,2]
[391001679,1760281843442,-5242.63206554,0.00014952,2]
[391001680,1760281843452,-63181.0390068,0.00014952,2]
[391001690,1760281845089,-330.26071053,0.00014661,2]
[391001691,1760281845099,-2640.89972202,0.00014952,2]
[391001692,1760281845113,-6766.83578264,0.00014952,2]
[391001693,1760281845124,-292.04387765,0.00014952,2]
[391001694,1760281845135,-1509.55307804,0.00014952,2]
[391001695,1760281845147,-6650.1236443,0.00014952,2]
[391001696,1760281845159,-1129.3,0.00014952,2]
[391001697,1760281845341,-2259.4,0.00014952,2]
[391001698,1760281845352,-1344.80538807,0.00014952,2]
[391001699,1760281845366,-826.55818112,0.00014952,2]
[391001700,1760281845377,-3217.59000038,0.00014952,2]
[391001701,1760281845388,-4567.21951138,0.00014952,2]
[391001702,1760281845485,-91924.28281981,0.00014952,2]
[391001963,1760281849693,-233.44762138,0.0001488,2]
[391001965,1760281849703,-15531.22046082,0.00014952,2]
[391001967,1760281849714,-151.0,0.00014953,2]